Workbook

Sheet Q
B1: アビバからの挑戦状
B2: 問題タイプ：スピードエクセル★
J3: 所要時間
L4: 00:00:00
L5: 2020-11-13T13:36:16
C7: 【ルール】方法は問わない。第1四半期は1～3月とする。
B8: 問題 | C8: 下記データから【最速】もしくは【斬新な方法】で、右表2020年四半期別売上（千円）を埋めよ。
C10: 伝票No. | D10: 日 付 | E10: 納品先 | F10: 担当者 | G10: 商品名 | H10: 単価（１ケース） | I10: 販売ケース | J10: 売上額 | M10: 2020年四半期別 売上額
C11: 1 | D11: 2020-08-26 | E11: ミクロ貿易 | F11: 森山 康夫 | G11: 飲むヨーグルト | H11: 1200 | I11: 80 | J11: =H11*I11 -> 96000 | M11: （千円） | N11: ＪＯ貿易 | O11: ＭＯＲＥ貿易 | P11: ミクロ貿易 | Q11: 黒部貿易 | R11: 西山貿易 | S11: 総計
C12: 2 | D12: 2020-12-28 | E12: 西山貿易 | F12: 東山 慎一 | G12: ウーロン茶 | H12: 1380 | I12: 50 | J12: =H12*I12 -> 69000 | M12: 第1四半期
C13: 3 | D13: 2020-08-18 | E13: ＭＯＲＥ貿易 | F13: 堤 啓吾 | G13: さわやかレモン | H13: 1860 | I13: 45 | J13: 83700 | M13: 第2四半期
C14: 4 | D14: 2020-05-03 | E14: 黒部貿易 | F14: 狭山 隆 | G14: 本格派コーヒー | H14: 1580 | I14: 35 | J14: 55300 | M14: 第3四半期
C15: 5 | D15: 2020-04-25 | E15: ＪＯ貿易 | F15: 堤 啓吾 | G15: 本格派コーヒー | H15: 1580 | I15: 25 | J15: 39500 | M15: 第4四半期
C16: 6 | D16: 2020-09-26 | E16: ＭＯＲＥ貿易 | F16: 堤 啓吾 | G16: 本格派コーヒー | H16: 1580 | I16: 45 | J16: 71100 | M16: 総計
C17: 7 | D17: 2020-05-19 | E17: 黒部貿易 | F17: 狭山 隆 | G17: さわやかレモン | H17: 1860 | I17: 60 | J17: 111600
C18: 8 | D18: 2020-07-21 | E18: 西山貿易 | F18: 堤 啓吾 | G18: 飲むヨーグルト | H18: 1200 | I18: 75 | J18: 90000
C19: 9 | D19: 2020-04-30 | E19: ＭＯＲＥ貿易 | F19: 東山 慎一 | G19: さわやかレモン | H19: 1860 | I19: 90 | J19: 167400
C20: 10 | D20: 2020-02-11 | E20: 黒部貿易 | F20: 狭山 隆 | G20: さわやかレモン | H20: 1860 | I20: 65 | J20: 120900
C21: 11 | D21: 2020-02-03 | E21: 黒部貿易 | F21: 狭山 隆 | G21: 本格派コーヒー | H21: 1580 | I21: 45 | J21: 71100
C22: 12 | D22: 2020-12-28 | E22: 西山貿易 | F22: 森山 康夫 | G22: ウーロン茶 | H22: 1380 | I22: 50 | J22: 69000
C23: 13 | D23: 2020-05-17 | E23: ＪＯ貿易 | F23: 森山 康夫 | G23: さわやかレモン | H23: 1860 | I23: 55 | J23: 102300
C24: 14 | D24: 2020-05-21 | E24: ＪＯ貿易 | F24: 森山 康夫 | G24: 飲むヨーグルト | H24: 1200 | I24: 60 | J24: 72000
C25: 15 | D25: 2020-04-01 | E25: ミクロ貿易 | F25: 堤 啓吾 | G25: ウーロン茶 | H25: 1380 | I25: 80 | J25: 110400
C26: 16 | D26: 2020-03-27 | E26: ミクロ貿易 | F26: 森山 康夫 | G26: 飲むヨーグルト | H26: 1200 | I26: 40 | J26: 48000
C27: 17 | D27: 2020-10-16 | E27: 西山貿易 | F27: 堤 啓吾 | G27: ウーロン茶 | H27: 1380 | I27: 50 | J27: 69000
C28: 18 | D28: 2020-10-12 | E28: 黒部貿易 | F28: 狭山 隆 | G28: 飲むヨーグルト | H28: 1200 | I28: 30 | J28: 36000
C29: 19 | D29: 2020-09-04 | E29: ＭＯＲＥ貿易 | F29: 堤 啓吾 | G29: 飲むヨーグルト | H29: 1200 | I29: 50 | J29: 60000
C30: 20 | D30: 2020-11-14 | E30: ＭＯＲＥ貿易 | F30: 狭山 隆 | G30: さわやかレモン | H30: 1860 | I30: 60 | J30: 111600
C31: 21 | D31: 2020-05-07 | E31: 西山貿易 | F31: 東山 慎一 | G31: 飲むヨーグルト | H31: 1200 | I31: 80 | J31: 96000
C32: 22 | D32: 2020-08-14 | E32: ミクロ貿易 | F32: 東山 慎一 | G32: ウーロン茶 | H32: 1380 | I32: 30 | J32: 41400
C33: 23 | D33: 2020-11-07 | E33: ＭＯＲＥ貿易 | F33: 狭山 隆 | G33: ウーロン茶 | H33: 1380 | I33: 25 | J33: 34500
C34: 24 | D34: 2020-08-02 | E34: ＭＯＲＥ貿易 | F34: 森山 康夫 | G34: さわやかレモン | H34: 1860 | I34: 70 | J34: 130200
C35: 25 | D35: 2020-04-28 | E35: 西山貿易 | F35: 堤 啓吾 | G35: 飲むヨーグルト | H35: 1200 | I35: 45 | J35: 54000
C36: 26 | D36: 2020-09-05 | E36: 黒部貿易 | F36: 堤 啓吾 | G36: 本格派コーヒー | H36: 1580 | I36: 24 | J36: 37920
C37: 27 | D37: 2020-06-17 | E37: ＭＯＲＥ貿易 | F37: 森山 康夫 | G37: 本格派コーヒー | H37: 1580 | I37: 36 | J37: 56880
C38: 28 | D38: 2020-05-06 | E38: 黒部貿易 | F38: 森山 康夫 | G38: 本格派コーヒー | H38: 1580 | I38: 32 | J38: 50560
C39: 29 | D39: 2020-01-10 | E39: 西山貿易 | F39: 森山 康夫 | G39: ウーロン茶 | H39: 1380 | I39: 24 | J39: 33120
C40: 30 | D40: 2020-01-19 | E40: ＭＯＲＥ貿易 | F40: 森山 康夫 | G40: 本格派コーヒー | H40: 1580 | I40: 20 | J40: 31600
C41: 31 | D41: 2020-07-29 | E41: ＭＯＲＥ貿易 | F41: 堤 啓吾 | G41: さわやかレモン | H41: 1860 | I41: 57 | J41: 106020
C42: 32 | D42: 2020-11-12 | E42: 西山貿易 | F42: 堤 啓吾 | G42: 飲むヨーグルト | H42: 1200 | I42: 49 | J42: 58800
C43: 33 | D43: 2020-08-04 | E43: 西山貿易 | F43: 堤 啓吾 | G43: 本格派コーヒー | H43: 1580 | I43: 44 | J43: 69520
C44: 34 | D44: 2020-01-20 | E44: ＭＯＲＥ貿易 | F44: 狭山 隆 | G44: 飲むヨーグルト | H44: 1200 | I44: 60 | J44: 72000
C45: 35 | D45: 2020-07-22 | E45: ＭＯＲＥ貿易 | F45: 堤 啓吾 | G45: 飲むヨーグルト | H45: 1200 | I45: 28 | J45: 33600
C46: 36 | D46: 2020-11-03 | E46: 黒部貿易 | F46: 堤 啓吾 | G46: ウーロン茶 | H46: 1380 | I46: 43 | J46: 59340
C47: 37 | D47: 2020-01-12 | E47: ミクロ貿易 | F47: 狭山 隆 | G47: 飲むヨーグルト | H47: 1200 | I47: 64 | J47: 76800
C48: 38 | D48: 2020-01-23 | E48: 黒部貿易 | F48: 東山 慎一 | G48: さわやかレモン | H48: 1860 | I48: 49 | J48: 91140
C49: 39 | D49: 2020-07-23 | E49: ＭＯＲＥ貿易 | F49: 堤 啓吾 | G49: 飲むヨーグルト | H49: 1200 | I49: 39 | J49: 46800
C50: 40 | D50: 2020-05-21 | E50: ミクロ貿易 | F50: 堤 啓吾 | G50: 本格派コーヒー | H50: 1580 | I50: 40 | J50: 63200
C51: 41 | D51: 2020-01-17 | E51: ミクロ貿易 | F51: 堤 啓吾 | G51: 飲むヨーグルト | H51: 1200 | I51: 63 | J51: 75600
C52: 42 | D52: 2020-07-22 | E52: ＪＯ貿易 | F52: 狭山 隆 | G52: さわやかレモン | H52: 1860 | I52: 26 | J52: 48360
C53: 43 | D53: 2020-11-25 | E53: 西山貿易 | F53: 狭山 隆 | G53: 飲むヨーグルト | H53: 1200 | I53: 79 | J53: 94800
C54: 44 | D54: 2020-05-28 | E54: 黒部貿易 | F54: 森山 康夫 | G54: ウーロン茶 | H54: 1380 | I54: 30 | J54: 41400
C55: 45 | D55: 2020-08-28 | E55: 黒部貿易 | F55: 森山 康夫 | G55: 本格派コーヒー | H55: 1580 | I55: 52 | J55: 82160
C56: 46 | D56: 2020-09-28 | E56: ＭＯＲＥ貿易 | F56: 東山 慎一 | G56: 本格派コーヒー | H56: 1580 | I56: 32 | J56: 50560
C57: 47 | D57: 2020-11-17 | E57: 黒部貿易 | F57: 堤 啓吾 | G57: 飲むヨーグルト | H57: 1200 | I57: 51 | J57: 61200
C58: 48 | D58: 2020-06-29 | E58: ＪＯ貿易 | F58: 森山 康夫 | G58: 飲むヨーグルト | H58: 1200 | I58: 47 | J58: 56400
C59: 49 | D59: 2020-05-07 | E59: ＪＯ貿易 | F59: 森山 康夫 | G59: さわやかレモン | H59: 1860 | I59: 60 | J59: 111600
C60: 50 | D60: 2020-08-31 | E60: 黒部貿易 | F60: 東山 慎一 | G60: ウーロン茶 | H60: 1380 | I60: 26 | J60: 35880
C61: 51 | D61: 2020-07-03 | E61: ＭＯＲＥ貿易 | F61: 東山 慎一 | G61: さわやかレモン | H61: 1860 | I61: 40 | J61: 74400
C62: 52 | D62: 2020-07-28 | E62: 黒部貿易 | F62: 堤 啓吾 | G62: 飲むヨーグルト | H62: 1200 | I62: 24 | J62: 28800
C63: 53 | D63: 2020-05-07 | E63: 黒部貿易 | F63: 東山 慎一 | G63: 本格派コーヒー | H63: 1580 | I63: 36 | J63: 56880
C64: 54 | D64: 2020-06-21 | E64: ＪＯ貿易 | F64: 東山 慎一 | G64: 飲むヨーグルト | H64: 1200 | I64: 22 | J64: 26400
C65: 55 | D65: 2020-02-26 | E65: ＭＯＲＥ貿易 | F65: 東山 慎一 | G65: 飲むヨーグルト | H65: 1200 | I65: 51 | J65: 61200
C66: 56 | D66: 2020-02-13 | E66: 黒部貿易 | F66: 東山 慎一 | G66: 飲むヨーグルト | H66: 1200 | I66: 44 | J66: 52800
C67: 57 | D67: 2020-11-25 | E67: 西山貿易 | F67: 森山 康夫 | G67: ウーロン茶 | H67: 1380 | I67: 80 | J67: 110400
C68: 58 | D68: 2020-04-17 | E68: ＭＯＲＥ貿易 | F68: 森山 康夫 | G68: 本格派コーヒー | H68: 1580 | I68: 21 | J68: 33180
C69: 59 | D69: 2020-04-20 | E69: ミクロ貿易 | F69: 堤 啓吾 | G69: さわやかレモン | H69: 1860 | I69: 69 | J69: 128340
C70: 60 | D70: 2020-11-02 | E70: ミクロ貿易 | F70: 狭山 隆 | G70: 飲むヨーグルト | H70: 1200 | I70: 21 | J70: 25200
C71: 61 | D71: 2020-04-09 | E71: ミクロ貿易 | F71: 狭山 隆 | G71: ウーロン茶 | H71: 1380 | I71: 67 | J71: 92460
C72: 62 | D72: 2020-04-25 | E72: ミクロ貿易 | F72: 堤 啓吾 | G72: さわやかレモン | H72: 1860 | I72: 78 | J72: 145080
C73: 63 | D73: 2020-03-25 | E73: ＭＯＲＥ貿易 | F73: 狭山 隆 | G73: 飲むヨーグルト | H73: 1200 | I73: 71 | J73: 85200
C74: 64 | D74: 2020-03-14 | E74: ミクロ貿易 | F74: 森山 康夫 | G74: ウーロン茶 | H74: 1380 | I74: 68 | J74: 93840
C75: 65 | D75: 2020-12-08 | E75: 黒部貿易 | F75: 狭山 隆 | G75: 本格派コーヒー | H75: 1580 | I75: 23 | J75: 36340
C76: 66 | D76: 2020-05-18 | E76: ＪＯ貿易 | F76: 森山 康夫 | G76: 本格派コーヒー | H76: 1580 | I76: 54 | J76: =H76*I76 -> 85320
C77: 67 | D77: 2020-07-09 | E77: ミクロ貿易 | F77: 森山 康夫 | G77: ウーロン茶 | H77: 1380 | I77: 79 | J77: 109020
C78: 68 | D78: 2020-08-12 | E78: ＭＯＲＥ貿易 | F78: 堤 啓吾 | G78: ウーロン茶 | H78: 1380 | I78: 69 | J78: 95220
C79: 69 | D79: 2020-03-03 | E79: ミクロ貿易 | F79: 森山 康夫 | G79: ウーロン茶 | H79: 1380 | I79: 42 | J79: 57960
C80: 70 | D80: 2020-09-04 | E80: 西山貿易 | F80: 東山 慎一 | G80: 飲むヨーグルト | H80: 1200 | I80: 37 | J80: 44400
C81: 71 | D81: 2020-02-04 | E81: 西山貿易 | F81: 狭山 隆 | G81: ウーロン茶 | H81: 1380 | I81: 33 | J81: 45540
C82: 72 | D82: 2020-01-27 | E82: 西山貿易 | F82: 東山 慎一 | G82: さわやかレモン | H82: 1860 | I82: 48 | J82: 89280
C83: 73 | D83: 2020-02-07 | E83: ＭＯＲＥ貿易 | F83: 東山 慎一 | G83: さわやかレモン | H83: 1860 | I83: 21 | J83: 39060
C84: 74 | D84: 2020-04-23 | E84: ＪＯ貿易 | F84: 東山 慎一 | G84: さわやかレモン | H84: 1860 | I84: 60 | J84: 111600
C85: 75 | D85: 2020-10-24 | E85: ＪＯ貿易 | F85: 狭山 隆 | G85: ウーロン茶 | H85: 1380 | I85: 74 | J85: 102120
C86: 76 | D86: 2020-05-16 | E86: ミクロ貿易 | F86: 森山 康夫 | G86: ウーロン茶 | H86: 1380 | I86: 42 | J86: 57960
C87: 77 | D87: 2020-02-19 | E87: ＭＯＲＥ貿易 | F87: 森山 康夫 | G87: 本格派コーヒー | H87: 1580 | I87: 49 | J87: 77420
C88: 78 | D88: 2020-06-10 | E88: ＪＯ貿易 | F88: 狭山 隆 | G88: 飲むヨーグルト | H88: 1200 | I88: 26 | J88: 31200
C89: 79 | D89: 2020-12-10 | E89: ＭＯＲＥ貿易 | F89: 堤 啓吾 | G89: さわやかレモン | H89: 1860 | I89: 67 | J89: 124620
C90: 80 | D90: 2020-03-05 | E90: ＪＯ貿易 | F90: 森山 康夫 | G90: 本格派コーヒー | H90: 1580 | I90: 38 | J90: 60040
C91: 81 | D91: 2020-06-07 | E91: ミクロ貿易 | F91: 東山 慎一 | G91: 飲むヨーグルト | H91: 1200 | I91: 46 | J91: 55200
C92: 82 | D92: 2020-04-12 | E92: 黒部貿易 | F92: 狭山 隆 | G92: 本格派コーヒー | H92: 1580 | I92: 36 | J92: 56880
C93: 83 | D93: 2020-03-03 | E93: ＪＯ貿易 | F93: 堤 啓吾 | G93: ウーロン茶 | H93: 1380 | I93: 79 | J93: 109020
C94: 84 | D94: 2020-04-02 | E94: ミクロ貿易 | F94: 東山 慎一 | G94: ウーロン茶 | H94: 1380 | I94: 69 | J94: 95220
C95: 85 | D95: 2020-01-12 | E95: ミクロ貿易 | F95: 狭山 隆 | G95: 飲むヨーグルト | H95: 1200 | I95: 32 | J95: 38400
C96: 86 | D96: 2020-05-26 | E96: 西山貿易 | F96: 堤 啓吾 | G96: 飲むヨーグルト | H96: 1200 | I96: 46 | J96: 55200
C97: 87 | D97: 2020-08-25 | E97: ＭＯＲＥ貿易 | F97: 狭山 隆 | G97: 飲むヨーグルト | H97: 1200 | I97: 79 | J97: 94800
C98: 88 | D98: 2020-09-25 | E98: 西山貿易 | F98: 森山 康夫 | G98: ウーロン茶 | H98: 1380 | I98: 38 | J98: 52440
C99: 89 | D99: 2020-07-23 | E99: 西山貿易 | F99: 堤 啓吾 | G99: 本格派コーヒー | H99: 1580 | I99: 57 | J99: 90060
C100: 90 | D100: 2020-06-14 | E100: ミクロ貿易 | F100: 堤 啓吾 | G100: さわやかレモン | H100: 1860 | I100: 34 | J100: 63240
C101: 91 | D101: 2020-02-20 | E101: ＪＯ貿易 | F101: 森山 康夫 | G101: 本格派コーヒー | H101: 1580 | I101: 66 | J101: 104280
C102: 92 | D102: 2020-11-04 | E102: ＭＯＲＥ貿易 | F102: 狭山 隆 | G102: ウーロン茶 | H102: 1380 | I102: 24 | J102: 33120
C103: 93 | D103: 2020-03-12 | E103: 黒部貿易 | F103: 東山 慎一 | G103: ウーロン茶 | H103: 1380 | I103: 23 | J103: 31740
C104: 94 | D104: 2020-09-10 | E104: 黒部貿易 | F104: 東山 慎一 | G104: 飲むヨーグルト | H104: 1200 | I104: 23 | J104: 27600
C105: 95 | D105: 2020-12-25 | E105: 黒部貿易 | F105: 狭山 隆 | G105: 飲むヨーグルト | H105: 1200 | I105: 55 | J105: 66000
C106: 96 | D106: 2020-04-07 | E106: 黒部貿易 | F106: 森山 康夫 | G106: 飲むヨーグルト | H106: 1200 | I106: 21 | J106: 25200
C107: 97 | D107: 2020-06-25 | E107: ＪＯ貿易 | F107: 森山 康夫 | G107: さわやかレモン | H107: 1860 | I107: 68 | J107: 126480
C108: 98 | D108: 2020-12-10 | E108: ＪＯ貿易 | F108: 森山 康夫 | G108: ウーロン茶 | H108: 1380 | I108: 25 | J108: 34500
C109: 99 | D109: 2020-02-23 | E109: ＪＯ貿易 | F109: 森山 康夫 | G109: 本格派コーヒー | H109: 1580 | I109: 37 | J109: 58460
C110: 100 | D110: 2020-08-12 | E110: ＪＯ貿易 | F110: 堤 啓吾 | G110: さわやかレモン | H110: 1860 | I110: 68 | J110: 126480
C111: 101 | D111: 2020-01-09 | E111: ＪＯ貿易 | F111: 東山 慎一 | G111: 本格派コーヒー | H111: 1580 | I111: 29 | J111: 45820
C112: 102 | D112: 2020-12-06 | E112: 黒部貿易 | F112: 森山 康夫 | G112: ウーロン茶 | H112: 1380 | I112: 29 | J112: 40020
C113: 103 | D113: 2020-05-24 | E113: ミクロ貿易 | F113: 狭山 隆 | G113: さわやかレモン | H113: 1860 | I113: 57 | J113: 106020
C114: 104 | D114: 2020-05-07 | E114: ミクロ貿易 | F114: 堤 啓吾 | G114: 本格派コーヒー | H114: 1580 | I114: 50 | J114: 79000
C115: 105 | D115: 2020-01-15 | E115: 黒部貿易 | F115: 東山 慎一 | G115: 飲むヨーグルト | H115: 1200 | I115: 47 | J115: 56400
C116: 106 | D116: 2020-04-15 | E116: 西山貿易 | F116: 狭山 隆 | G116: 本格派コーヒー | H116: 1580 | I116: 29 | J116: 45820
C117: 107 | D117: 2020-05-20 | E117: ＭＯＲＥ貿易 | F117: 狭山 隆 | G117: ウーロン茶 | H117: 1380 | I117: 63 | J117: 86940
C118: 108 | D118: 2020-11-04 | E118: 西山貿易 | F118: 狭山 隆 | G118: 飲むヨーグルト | H118: 1200 | I118: 60 | J118: 72000
C119: 109 | D119: 2020-02-18 | E119: 西山貿易 | F119: 森山 康夫 | G119: 飲むヨーグルト | H119: 1200 | I119: 63 | J119: 75600
C120: 110 | D120: 2020-10-13 | E120: 西山貿易 | F120: 森山 康夫 | G120: 飲むヨーグルト | H120: 1200 | I120: 60 | J120: 72000
C121: 111 | D121: 2020-08-28 | E121: 西山貿易 | F121: 狭山 隆 | G121: 飲むヨーグルト | H121: 1200 | I121: 49 | J121: 58800
C122: 112 | D122: 2020-10-13 | E122: ＪＯ貿易 | F122: 森山 康夫 | G122: 本格派コーヒー | H122: 1580 | I122: 39 | J122: 61620
C123: 113 | D123: 2020-12-21 | E123: ＪＯ貿易 | F123: 森山 康夫 | G123: 本格派コーヒー | H123: 1580 | I123: 61 | J123: 96380
C124: 114 | D124: 2020-10-17 | E124: ＭＯＲＥ貿易 | F124: 狭山 隆 | G124: ウーロン茶 | H124: 1380 | I124: 22 | J124: 30360
C125: 115 | D125: 2020-08-12 | E125: ＪＯ貿易 | F125: 堤 啓吾 | G125: 本格派コーヒー | H125: 1580 | I125: 68 | J125: 107440
C126: 116 | D126: 2020-04-21 | E126: 西山貿易 | F126: 森山 康夫 | G126: ウーロン茶 | H126: 1380 | I126: 43 | J126: 59340
C127: 117 | D127: 2020-11-10 | E127: 黒部貿易 | F127: 堤 啓吾 | G127: 飲むヨーグルト | H127: 1200 | I127: 20 | J127: 24000
C128: 118 | D128: 2020-05-21 | E128: 黒部貿易 | F128: 東山 慎一 | G128: ウーロン茶 | H128: 1380 | I128: 44 | J128: 60720
C129: 119 | D129: 2020-05-01 | E129: ＪＯ貿易 | F129: 堤 啓吾 | G129: 飲むヨーグルト | H129: 1200 | I129: 38 | J129: 45600
C130: 120 | D130: 2020-09-22 | E130: ＭＯＲＥ貿易 | F130: 堤 啓吾 | G130: さわやかレモン | H130: 1860 | I130: 22 | J130: 40920
C131: 121 | D131: 2020-10-05 | E131: 黒部貿易 | F131: 東山 慎一 | G131: 飲むヨーグルト | H131: 1200 | I131: 39 | J131: 46800
C132: 122 | D132: 2020-10-23 | E132: ＭＯＲＥ貿易 | F132: 狭山 隆 | G132: ウーロン茶 | H132: 1380 | I132: 71 | J132: 97980
C133: 123 | D133: 2020-06-11 | E133: 黒部貿易 | F133: 狭山 隆 | G133: ウーロン茶 | H133: 1380 | I133: 31 | J133: 42780
C134: 124 | D134: 2020-03-30 | E134: ＭＯＲＥ貿易 | F134: 東山 慎一 | G134: さわやかレモン | H134: 1860 | I134: 70 | J134: 130200
C135: 125 | D135: 2020-08-30 | E135: ミクロ貿易 | F135: 森山 康夫 | G135: 本格派コーヒー | H135: 1580 | I135: 51 | J135: 80580
C136: 126 | D136: 2020-10-28 | E136: 西山貿易 | F136: 狭山 隆 | G136: さわやかレモン | H136: 1860 | I136: 58 | J136: 107880
C137: 127 | D137: 2020-10-21 | E137: 西山貿易 | F137: 森山 康夫 | G137: さわやかレモン | H137: 1860 | I137: 30 | J137: 55800
C138: 128 | D138: 2020-07-01 | E138: ＭＯＲＥ貿易 | F138: 森山 康夫 | G138: 飲むヨーグルト | H138: 1200 | I138: 74 | J138: 88800
C139: 129 | D139: 2020-07-16 | E139: ミクロ貿易 | F139: 堤 啓吾 | G139: さわやかレモン | H139: 1860 | I139: 23 | J139: 42780
C140: 130 | D140: 2020-08-23 | E140: ミクロ貿易 | F140: 東山 慎一 | G140: 本格派コーヒー | H140: 1580 | I140: 43 | J140: =H140*I140 -> 67940
C141: 131 | D141: 2020-08-16 | E141: 西山貿易 | F141: 狭山 隆 | G141: さわやかレモン | H141: 1860 | I141: 43 | J141: 79980
C142: 132 | D142: 2020-05-07 | E142: ＪＯ貿易 | F142: 狭山 隆 | G142: 飲むヨーグルト | H142: 1200 | I142: 21 | J142: 25200
C143: 133 | D143: 2020-02-02 | E143: ＭＯＲＥ貿易 | F143: 東山 慎一 | G143: 本格派コーヒー | H143: 1580 | I143: 30 | J143: 47400
C144: 134 | D144: 2020-01-30 | E144: 西山貿易 | F144: 狭山 隆 | G144: さわやかレモン | H144: 1860 | I144: 73 | J144: 135780
C145: 135 | D145: 2020-04-15 | E145: ミクロ貿易 | F145: 東山 慎一 | G145: 飲むヨーグルト | H145: 1200 | I145: 42 | J145: 50400
C146: 136 | D146: 2020-11-28 | E146: 黒部貿易 | F146: 堤 啓吾 | G146: 本格派コーヒー | H146: 1580 | I146: 29 | J146: 45820
C147: 137 | D147: 2020-11-06 | E147: 黒部貿易 | F147: 堤 啓吾 | G147: さわやかレモン | H147: 1860 | I147: 24 | J147: 44640
C148: 138 | D148: 2020-03-13 | E148: ミクロ貿易 | F148: 狭山 隆 | G148: 飲むヨーグルト | H148: 1200 | I148: 49 | J148: 58800
C149: 139 | D149: 2020-06-27 | E149: ミクロ貿易 | F149: 森山 康夫 | G149: さわやかレモン | H149: 1860 | I149: 22 | J149: 40920
C150: 140 | D150: 2020-01-04 | E150: ミクロ貿易 | F150: 狭山 隆 | G150: ウーロン茶 | H150: 1380 | I150: 58 | J150: 80040
C151: 141 | D151: 2020-12-11 | E151: 黒部貿易 | F151: 森山 康夫 | G151: さわやかレモン | H151: 1860 | I151: 69 | J151: 128340
C152: 142 | D152: 2020-10-28 | E152: ミクロ貿易 | F152: 堤 啓吾 | G152: 本格派コーヒー | H152: 1580 | I152: 72 | J152: 113760
C153: 143 | D153: 2020-11-07 | E153: ＭＯＲＥ貿易 | F153: 森山 康夫 | G153: さわやかレモン | H153: 1860 | I153: 64 | J153: 119040
C154: 144 | D154: 2020-11-14 | E154: ミクロ貿易 | F154: 堤 啓吾 | G154: さわやかレモン | H154: 1860 | I154: 70 | J154: 130200
C155: 145 | D155: 2020-09-23 | E155: 黒部貿易 | F155: 森山 康夫 | G155: 本格派コーヒー | H155: 1580 | I155: 71 | J155: 112180
C156: 146 | D156: 2020-08-10 | E156: ミクロ貿易 | F156: 堤 啓吾 | G156: 飲むヨーグルト | H156: 1200 | I156: 63 | J156: 75600
C157: 147 | D157: 2020-02-11 | E157: ミクロ貿易 | F157: 堤 啓吾 | G157: 本格派コーヒー | H157: 1580 | I157: 73 | J157: 115340
C158: 148 | D158: 2020-02-28 | E158: 黒部貿易 | F158: 狭山 隆 | G158: さわやかレモン | H158: 1860 | I158: 75 | J158: 139500
C159: 149 | D159: 2020-08-12 | E159: ＭＯＲＥ貿易 | F159: 堤 啓吾 | G159: 飲むヨーグルト | H159: 1200 | I159: 80 | J159: 96000
C160: 150 | D160: 2020-05-01 | E160: ミクロ貿易 | F160: 堤 啓吾 | G160: 本格派コーヒー | H160: 1580 | I160: 62 | J160: 97960
C161: 151 | D161: 2020-10-11 | E161: 黒部貿易 | F161: 東山 慎一 | G161: ウーロン茶 | H161: 1380 | I161: 28 | J161: 38640
C162: 152 | D162: 2020-05-09 | E162: ＭＯＲＥ貿易 | F162: 狭山 隆 | G162: さわやかレモン | H162: 1860 | I162: 53 | J162: 98580
C163: 153 | D163: 2020-09-25 | E163: ＭＯＲＥ貿易 | F163: 森山 康夫 | G163: ウーロン茶 | H163: 1380 | I163: 63 | J163: 86940
C164: 154 | D164: 2020-06-28 | E164: ミクロ貿易 | F164: 森山 康夫 | G164: 本格派コーヒー | H164: 1580 | I164: 49 | J164: 77420
C165: 155 | D165: 2020-01-13 | E165: ＪＯ貿易 | F165: 堤 啓吾 | G165: ウーロン茶 | H165: 1380 | I165: 55 | J165: 75900
C166: 156 | D166: 2020-02-02 | E166: ＭＯＲＥ貿易 | F166: 東山 慎一 | G166: 飲むヨーグルト | H166: 1200 | I166: 76 | J166: 91200
C167: 157 | D167: 2020-08-18 | E167: ミクロ貿易 | F167: 森山 康夫 | G167: 飲むヨーグルト | H167: 1200 | I167: 30 | J167: 36000
C168: 158 | D168: 2020-01-29 | E168: ミクロ貿易 | F168: 狭山 隆 | G168: 本格派コーヒー | H168: 1580 | I168: 27 | J168: 42660
C169: 159 | D169: 2020-03-02 | E169: 西山貿易 | F169: 森山 康夫 | G169: 飲むヨーグルト | H169: 1200 | I169: 50 | J169: 60000
C170: 160 | D170: 2020-02-27 | E170: ＪＯ貿易 | F170: 堤 啓吾 | G170: さわやかレモン | H170: 1860 | I170: 67 | J170: 124620
C171: 161 | D171: 2020-04-30 | E171: ＭＯＲＥ貿易 | F171: 東山 慎一 | G171: さわやかレモン | H171: 1860 | I171: 59 | J171: 109740
C172: 162 | D172: 2020-12-05 | E172: 黒部貿易 | F172: 東山 慎一 | G172: さわやかレモン | H172: 1860 | I172: 37 | J172: 68820
C173: 163 | D173: 2020-07-02 | E173: 黒部貿易 | F173: 狭山 隆 | G173: ウーロン茶 | H173: 1380 | I173: 44 | J173: 60720
C174: 164 | D174: 2020-04-26 | E174: ＪＯ貿易 | F174: 狭山 隆 | G174: ウーロン茶 | H174: 1380 | I174: 74 | J174: 102120
C175: 165 | D175: 2020-03-06 | E175: ＭＯＲＥ貿易 | F175: 森山 康夫 | G175: さわやかレモン | H175: 1860 | I175: 53 | J175: 98580
C176: 166 | D176: 2020-01-11 | E176: ミクロ貿易 | F176: 森山 康夫 | G176: さわやかレモン | H176: 1860 | I176: 72 | J176: 133920
C177: 167 | D177: 2020-10-02 | E177: ＭＯＲＥ貿易 | F177: 堤 啓吾 | G177: さわやかレモン | H177: 1860 | I177: 25 | J177: 46500
C178: 168 | D178: 2020-09-25 | E178: 黒部貿易 | F178: 堤 啓吾 | G178: 飲むヨーグルト | H178: 1200 | I178: 71 | J178: 85200
C179: 169 | D179: 2020-02-21 | E179: 黒部貿易 | F179: 東山 慎一 | G179: さわやかレモン | H179: 1860 | I179: 62 | J179: 115320
C180: 170 | D180: 2020-11-21 | E180: ＭＯＲＥ貿易 | F180: 堤 啓吾 | G180: ウーロン茶 | H180: 1380 | I180: 65 | J180: 89700
C181: 171 | D181: 2020-01-17 | E181: 西山貿易 | F181: 狭山 隆 | G181: 飲むヨーグルト | H181: 1200 | I181: 41 | J181: 49200
C182: 172 | D182: 2020-01-20 | E182: 西山貿易 | F182: 狭山 隆 | G182: さわやかレモン | H182: 1860 | I182: 58 | J182: 107880
C183: 173 | D183: 2020-03-19 | E183: ＪＯ貿易 | F183: 狭山 隆 | G183: 飲むヨーグルト | H183: 1200 | I183: 52 | J183: 62400
C184: 174 | D184: 2020-10-26 | E184: ミクロ貿易 | F184: 森山 康夫 | G184: さわやかレモン | H184: 1860 | I184: 22 | J184: 40920
C185: 175 | D185: 2020-03-11 | E185: ミクロ貿易 | F185: 狭山 隆 | G185: さわやかレモン | H185: 1860 | I185: 65 | J185: 120900
C186: 176 | D186: 2020-05-23 | E186: ＪＯ貿易 | F186: 堤 啓吾 | G186: 飲むヨーグルト | H186: 1200 | I186: 25 | J186: 30000
C187: 177 | D187: 2020-11-14 | E187: 西山貿易 | F187: 狭山 隆 | G187: さわやかレモン | H187: 1860 | I187: 31 | J187: 57660
C188: 178 | D188: 2020-05-07 | E188: 黒部貿易 | F188: 東山 慎一 | G188: さわやかレモン | H188: 1860 | I188: 65 | J188: 120900
C189: 179 | D189: 2020-03-18 | E189: ミクロ貿易 | F189: 森山 康夫 | G189: 本格派コーヒー | H189: 1580 | I189: 35 | J189: 55300
C190: 180 | D190: 2020-10-21 | E190: ＭＯＲＥ貿易 | F190: 狭山 隆 | G190: 本格派コーヒー | H190: 1580 | I190: 49 | J190: 77420
C191: 181 | D191: 2020-01-04 | E191: ＭＯＲＥ貿易 | F191: 東山 慎一 | G191: 本格派コーヒー | H191: 1580 | I191: 59 | J191: 93220
C192: 182 | D192: 2020-10-22 | E192: ミクロ貿易 | F192: 狭山 隆 | G192: ウーロン茶 | H192: 1380 | I192: 39 | J192: 53820
C193: 183 | D193: 2020-11-27 | E193: ＭＯＲＥ貿易 | F193: 森山 康夫 | G193: 飲むヨーグルト | H193: 1200 | I193: 67 | J193: 80400
C194: 184 | D194: 2020-05-07 | E194: 黒部貿易 | F194: 東山 慎一 | G194: さわやかレモン | H194: 1860 | I194: 43 | J194: 79980
C195: 185 | D195: 2020-11-03 | E195: ＭＯＲＥ貿易 | F195: 堤 啓吾 | G195: さわやかレモン | H195: 1860 | I195: 51 | J195: 94860
C196: 186 | D196: 2020-12-05 | E196: ミクロ貿易 | F196: 堤 啓吾 | G196: さわやかレモン | H196: 1860 | I196: 64 | J196: 119040
C197: 187 | D197: 2020-08-18 | E197: ＭＯＲＥ貿易 | F197: 東山 慎一 | G197: 本格派コーヒー | H197: 1580 | I197: 26 | J197: 41080
C198: 188 | D198: 2020-01-26 | E198: ミクロ貿易 | F198: 狭山 隆 | G198: 飲むヨーグルト | H198: 1200 | I198: 59 | J198: 70800
C199: 189 | D199: 2020-04-16 | E199: ＭＯＲＥ貿易 | F199: 堤 啓吾 | G199: 飲むヨーグルト | H199: 1200 | I199: 76 | J199: 91200
C200: 190 | D200: 2020-06-10 | E200: ＭＯＲＥ貿易 | F200: 森山 康夫 | G200: 本格派コーヒー | H200: 1580 | I200: 67 | J200: 105860
C201: 191 | D201: 2020-02-07 | E201: 西山貿易 | F201: 森山 康夫 | G201: さわやかレモン | H201: 1860 | I201: 76 | J201: 141360
C202: 192 | D202: 2020-06-01 | E202: ＪＯ貿易 | F202: 堤 啓吾 | G202: 本格派コーヒー | H202: 1580 | I202: 47 | J202: 74260
... 893 more rows
